[Event "Titled Tuesday Blitz May 25 2021"]
[White "Visakh N R"]
[Black "Mirzoev, Azer"]
[WhiteFideId "25012223"]
[BlackFideId "13400304"]
[WhiteElo "2428"]
[BlackElo "2525"]
[Result "1/2-1/2"]
[Round "09"]
[TimeControl "180+1"]
[Date "2021.05.25"]
[WhiteClock "0:00:36"]
[BlackClock "0:00:03"]

1. e4 {[%clk 0:03:00]}  c6 {[%clk 0:02:59]} 2. Nf3 {[%clk 0:02:57]}  d5 {[%clk 0:02:59]} 3. d3 {[%clk 0:02:57]}  Nd7 {[%clk 0:02:56]} 4. g3 {[%clk 0:02:54]}  e5 {[%clk 0:02:56]} 5. Bg2 {[%clk 0:02:54]}  Ngf6 {[%clk 0:02:56]} 6. O-O {[%clk 0:02:55]}  Bd6 {[%clk 0:02:55]} 7. exd5 {[%clk 0:02:53]}  cxd5 {[%clk 0:02:54]} 8. c4 {[%clk 0:02:53]}  O-O {[%clk 0:02:52]} 9. Nc3 {[%clk 0:02:53]}  d4 {[%clk 0:02:52]} 10. Nb5 {[%clk 0:02:51]}  Bb8 {[%clk 0:02:52]} 11. Bg5 {[%clk 0:02:50]}  h6 {[%clk 0:02:50]} 12. Bxf6 {[%clk 0:02:49]}  Nxf6 {[%clk 0:02:48]} 13. Re1 {[%clk 0:02:49]}  a6 {[%clk 0:02:48]} 14. Na3 {[%clk 0:02:48]}  Re8 {[%clk 0:02:47]} 15. c5 {[%clk 0:02:48]}  Nd7 {[%clk 0:02:10]} 16. Rc1 {[%clk 0:02:31]}  Ba7 {[%clk 0:02:04]} 17. Nc4 {[%clk 0:02:18]}  Nxc5 {[%clk 0:01:30]} 18. Nfxe5 {[%clk 0:02:10]}  Rb8 {[%clk 0:01:23]} 19. b4 {[%clk 0:02:05]}  Ne6 {[%clk 0:01:06]} 20. Qh5 {[%clk 0:02:03]}  Re7 {[%clk 0:00:43]} 21. Na5 {[%clk 0:01:38]}  Nf8 {[%clk 0:00:25]} 22. Nxf7 {[%clk 0:01:09]}  Rxf7 {[%clk 0:00:22]} 23. Bd5 {[%clk 0:01:09]}  g6 {[%clk 0:00:18]} 24. Bxf7+ {[%clk 0:01:05]}  Kxf7 {[%clk 0:00:18]} 25. Qxh6 {[%clk 0:01:04]}  Bf5 {[%clk 0:00:15]} 26. Nc4 {[%clk 0:00:59]}  Kg8 {[%clk 0:00:12]} 27. Ne5 {[%clk 0:00:58]}  Qf6 {[%clk 0:00:10]} 28. Qf4 {[%clk 0:00:53]}  Re8 {[%clk 0:00:09]} 29. g4 {[%clk 0:00:50]}  Ne6 {[%clk 0:00:08]} 30. Qg3 {[%clk 0:00:50]}  Bb8 {[%clk 0:00:07]} 31. gxf5 {[%clk 0:00:50]}  Qxf5 {[%clk 0:00:07]} 32. Qxg6+ {[%clk 0:00:44]}  Qxg6+ {[%clk 0:00:07]} 33. Nxg6 {[%clk 0:00:45]}  Kf7 {[%clk 0:00:07]} 34. Ne5+ {[%clk 0:00:45]}  Kf6 {[%clk 0:00:07]} 35. Ng4+ {[%clk 0:00:45]}  Kf5 {[%clk 0:00:07]} 36. Re4 {[%clk 0:00:44]}  Rg8 {[%clk 0:00:06]} 37. h3 {[%clk 0:00:40]}  Nf4 {[%clk 0:00:06]} 38. Rc5+ {[%clk 0:00:40]}  Kg6 {[%clk 0:00:04]} 39. Rxd4 {[%clk 0:00:36]}  Ne2+ {[%clk 0:00:03]} 40. Kg2 {[%clk 0:00:35]}  Nxd4 {[%clk 0:00:04]} 41. Rd5 {[%clk 0:00:35]}  Nc6 {[%clk 0:00:04]} 42. Rd7 {[%clk 0:00:35]}  b5 {[%clk 0:00:04]} 43. Rb7 {[%clk 0:00:36]}  Nxb4 {[%clk 0:00:04]} 44. a3 {[%clk 0:00:35]}  Nxd3 {[%clk 0:00:04]} 45. Rb6+ {[%clk 0:00:35]}  Kf5 {[%clk 0:00:03]} 46. Rxa6 {[%clk 0:00:35]}  Ne5 {[%clk 0:00:03]} 47. Ra5 {[%clk 0:00:34]}  Nxg4 {[%clk 0:00:03]} 48. hxg4+ {[%clk 0:00:34]}  Rxg4+ {[%clk 0:00:04]} 49. Kh3 {[%clk 0:00:35]}  Ra4 {[%clk 0:00:02]} 50. Rxb5+ {[%clk 0:00:35]}  Be5 {[%clk 0:00:03]} 51. Rb3 {[%clk 0:00:34]}  Rf4 {[%clk 0:00:02]} 52. Kg2 {[%clk 0:00:34]}  Ra4 {[%clk 0:00:03]} 53. Rf3+ {[%clk 0:00:34]}  Ke6 {[%clk 0:00:03]} 54. Re3 {[%clk 0:00:34]}  Kd5 {[%clk 0:00:04]} 55. Kf3 {[%clk 0:00:35]}  Bd6 {[%clk 0:00:04]} 56. Rd3+ {[%clk 0:00:35]}  Ke6 {[%clk 0:00:04]} 57. Kg2 {[%clk 0:00:35]}  Rxa3 {[%clk 0:00:03]} 58. Rxa3 {[%clk 0:00:35]}  Bxa3 {[%clk 0:00:03]} 59. f4 {[%clk 0:00:35]}  Bd6 {[%clk 0:00:03]} 60. f5+ {[%clk 0:00:36]}  Kxf5 {[%clk 0:00:03]} 1/2-1/2


[Site "https://www.chess.com"]

[Event "Titled Tuesday Blitz May 25 2021"]
[White "Wagh Suyog"]
[Black "Pridorozhni, Aleksei"]
[WhiteFideId "25071688"]
[BlackFideId "4127870"]
[WhiteElo "2219"]
[BlackElo "2565"]
[Result "0-1"]
[Round "09"]
[TimeControl "180+1"]
[Date "2021.05.25"]
[WhiteClock "0:00:03"]
[BlackClock "0:00:26"]

1. e4 {[%clk 0:02:52]}  c5 {[%clk 0:02:59]} 2. b3 {[%clk 0:02:51]}  b6 {[%clk 0:02:55]} 3. Bb2 {[%clk 0:02:51]}  Bb7 {[%clk 0:02:56]} 4. Nc3 {[%clk 0:02:52]}  Nf6 {[%clk 0:02:55]} 5. e5 {[%clk 0:02:40]}  Ne4 {[%clk 0:02:52]} 6. Nf3 {[%clk 0:02:37]}  Nxc3 {[%clk 0:02:51]} 7. dxc3 {[%clk 0:02:36]}  Nc6 {[%clk 0:02:47]} 8. c4 {[%clk 0:02:33]}  g6 {[%clk 0:02:36]} 9. Bd3 {[%clk 0:02:25]}  Bg7 {[%clk 0:02:35]} 10. Qe2 {[%clk 0:02:22]}  Qc7 {[%clk 0:02:32]} 11. h4 {[%clk 0:02:12]}  h6 {[%clk 0:02:24]} 12. O-O-O {[%clk 0:02:02]}  O-O-O {[%clk 0:02:23]} 13. a3 {[%clk 0:01:57]}  e6 {[%clk 0:02:17]} 14. Kb1 {[%clk 0:01:51]}  Rhg8 {[%clk 0:02:10]} 15. Rhe1 {[%clk 0:01:50]}  d6 {[%clk 0:02:08]} 16. exd6 {[%clk 0:01:47]}  Rxd6 {[%clk 0:02:09]} 17. Bxg7 {[%clk 0:01:46]}  Rxg7 {[%clk 0:02:10]} 18. Be4 {[%clk 0:01:46]}  Rxd1+ {[%clk 0:02:07]} 19. Rxd1 {[%clk 0:01:46]}  Rg8 {[%clk 0:02:06]} 20. Bxc6 {[%clk 0:01:45]}  Bxc6 {[%clk 0:02:06]} 21. Ne5 {[%clk 0:01:39]}  Rd8 {[%clk 0:02:04]} 22. Rxd8+ {[%clk 0:01:28]}  Kxd8 {[%clk 0:02:05]} 23. Qd2+ {[%clk 0:01:25]}  Ke7 {[%clk 0:01:57]} 24. Qf4 {[%clk 0:01:24]}  Ke8 {[%clk 0:01:51]} 25. Nxg6 {[%clk 0:01:21]}  Qxf4 {[%clk 0:01:35]} 26. Nxf4 {[%clk 0:01:21]}  Ke7 {[%clk 0:01:35]} 27. g3 {[%clk 0:01:11]}  Kf6 {[%clk 0:01:33]} 28. Kc1 {[%clk 0:01:08]}  Kf5 {[%clk 0:01:33]} 29. Kd2 {[%clk 0:01:08]}  Kg4 {[%clk 0:01:16]} 30. Ke3 {[%clk 0:01:07]}  Bb7 {[%clk 0:01:12]} 31. Nd3 {[%clk 0:01:05]}  f6 {[%clk 0:01:12]} 32. b4 {[%clk 0:01:01]}  cxb4 {[%clk 0:01:12]} 33. axb4 {[%clk 0:01:00]}  e5 {[%clk 0:01:12]} 34. c5 {[%clk 0:01:00]}  Bd5 {[%clk 0:01:09]} 35. b5 {[%clk 0:00:54]}  bxc5 {[%clk 0:01:05]} 36. Nxc5 {[%clk 0:00:54]}  f5 {[%clk 0:00:55]} 37. Nd3 {[%clk 0:00:52]}  f4+ {[%clk 0:00:55]} 38. gxf4 {[%clk 0:00:52]}  exf4+ {[%clk 0:00:55]} 39. Nxf4 {[%clk 0:00:51]}  Bc4 {[%clk 0:00:56]} 40. Ng6 {[%clk 0:00:37]}  Bxb5 {[%clk 0:00:55]} 41. c4 {[%clk 0:00:38]}  Be8 {[%clk 0:00:53]} 42. Ne5+ {[%clk 0:00:35]}  Kxh4 {[%clk 0:00:53]} 43. f4 {[%clk 0:00:35]}  a5 {[%clk 0:00:51]} 44. c5 {[%clk 0:00:31]}  a4 {[%clk 0:00:51]} 45. c6 {[%clk 0:00:17]}  Bxc6 {[%clk 0:00:49]} 46. Nxc6 {[%clk 0:00:18]}  a3 {[%clk 0:00:49]} 47. Nb4 {[%clk 0:00:18]}  Kg4 {[%clk 0:00:49]} 48. Ke4 {[%clk 0:00:16]}  h5 {[%clk 0:00:49]} 49. f5 {[%clk 0:00:17]}  h4 {[%clk 0:00:48]} 50. f6 {[%clk 0:00:18]}  h3 {[%clk 0:00:49]} 51. f7 {[%clk 0:00:19]}  h2 {[%clk 0:00:50]} 52. f8=Q {[%clk 0:00:19]}  h1=Q+ {[%clk 0:00:50]} 53. Kd4 {[%clk 0:00:19]}  Qa1+ {[%clk 0:00:43]} 54. Kc4 {[%clk 0:00:18]}  Qb2 {[%clk 0:00:43]} 55. Qg8+ {[%clk 0:00:17]}  Kh3 {[%clk 0:00:43]} 56. Qh7+ {[%clk 0:00:17]}  Kg2 {[%clk 0:00:43]} 57. Qe4+ {[%clk 0:00:17]}  Kh2 {[%clk 0:00:42]} 58. Qh4+ {[%clk 0:00:17]}  Kg2 {[%clk 0:00:42]} 59. Qg5+ {[%clk 0:00:17]}  Kh2 {[%clk 0:00:42]} 60. Qf4+ {[%clk 0:00:15]}  Kg2 {[%clk 0:00:42]} 61. Nd5 {[%clk 0:00:14]}  a2 {[%clk 0:00:33]} 62. Ne3+ {[%clk 0:00:14]}  Kg1 {[%clk 0:00:30]} 63. Qg4+ {[%clk 0:00:10]}  Kh1 {[%clk 0:00:30]} 64. Qf3+ {[%clk 0:00:09]}  Kg1 {[%clk 0:00:30]} 65. Qg3+ {[%clk 0:00:09]}  Kh1 {[%clk 0:00:31]} 66. Qh4+ {[%clk 0:00:09]}  Kg1 {[%clk 0:00:30]} 67. Qe1+ {[%clk 0:00:10]}  Kh2 {[%clk 0:00:30]} 68. Nf1+ {[%clk 0:00:10]}  Kg2 {[%clk 0:00:27]} 69. Ne3+ {[%clk 0:00:10]}  Kf3 {[%clk 0:00:27]} 70. Qd1+ {[%clk 0:00:03]}  Kxe3 {[%clk 0:00:26]} 71. Qd3+ {[%clk 0:00:03]}  Kf2 {[%clk 0:00:26]} 72. Qf5+ {[%clk 0:00:03]}  Ke1 {[%clk 0:00:26]} 0-1


[Site "https://www.chess.com"]

[Event "Titled Tuesday Blitz May 25 2021"]
[White "Zhukova, Natalia"]
[Black "Goryachkina, Aleksandra"]
[WhiteFideId "14101513"]
[BlackFideId "4147103"]
[WhiteElo "2369"]
[BlackElo "2441"]
[Result "0-1"]
[Round "09"]
[TimeControl "180+1"]
[Date "2021.05.25"]
[WhiteClock "0:00:03"]
[BlackClock "0:00:04"]

1. c4 {[%clk 0:03:00]}  Nf6 {[%clk 0:02:56]} 2. Nc3 {[%clk 0:03:00]}  c5 {[%clk 0:02:56]} 3. Nf3 {[%clk 0:03:00]}  Nc6 {[%clk 0:02:53]} 4. d4 {[%clk 0:03:01]}  cxd4 {[%clk 0:02:53]} 5. Nxd4 {[%clk 0:03:01]}  g6 {[%clk 0:02:49]} 6. e4 {[%clk 0:02:59]}  d6 {[%clk 0:02:45]} 7. Be2 {[%clk 0:02:57]}  Bg7 {[%clk 0:02:45]} 8. Be3 {[%clk 0:02:57]}  O-O {[%clk 0:02:43]} 9. O-O {[%clk 0:02:57]}  Nxd4 {[%clk 0:02:40]} 10. Bxd4 {[%clk 0:02:57]}  Bd7 {[%clk 0:02:40]} 11. h3 {[%clk 0:02:53]}  Bc6 {[%clk 0:02:39]} 12. Qc2 {[%clk 0:02:53]}  Nd7 {[%clk 0:02:36]} 13. Bxg7 {[%clk 0:02:52]}  Kxg7 {[%clk 0:02:36]} 14. b4 {[%clk 0:02:53]}  b6 {[%clk 0:02:34]} 15. Rad1 {[%clk 0:02:50]}  Rc8 {[%clk 0:02:33]} 16. Qb2 {[%clk 0:02:49]}  Kg8 {[%clk 0:02:32]} 17. Bg4 {[%clk 0:02:44]}  Rc7 {[%clk 0:02:11]} 18. f4 {[%clk 0:02:10]}  Nf6 {[%clk 0:01:43]} 19. e5 {[%clk 0:02:06]}  Nxg4 {[%clk 0:01:42]} 20. hxg4 {[%clk 0:02:07]}  Rd7 {[%clk 0:01:27]} 21. e6 {[%clk 0:01:57]}  fxe6 {[%clk 0:01:25]} 22. Qe2 {[%clk 0:01:57]}  Qe8 {[%clk 0:01:20]} 23. b5 {[%clk 0:01:47]}  Bb7 {[%clk 0:01:12]} 24. Qxe6+ {[%clk 0:01:47]}  Kh8 {[%clk 0:01:11]} 25. f5 {[%clk 0:01:20]}  Rf6 {[%clk 0:01:08]} 26. Qe3 {[%clk 0:01:15]}  Rc7 {[%clk 0:00:46]} 27. g5 {[%clk 0:01:05]}  Rxf5 {[%clk 0:00:40]} 28. Rxf5 {[%clk 0:01:05]}  gxf5 {[%clk 0:00:40]} 29. Rxd6 {[%clk 0:01:05]}  e5 {[%clk 0:00:06]} 30. g6 {[%clk 0:00:41]}  Qe7 {[%clk 0:00:06]} 31. Qd2 {[%clk 0:00:25]}  Qh4 {[%clk 0:00:02]} 32. Rd8+ {[%clk 0:00:17]}  Kg7 {[%clk 0:00:03]} 33. Rd7+ {[%clk 0:00:15]}  Rxd7 {[%clk 0:00:03]} 34. Qxd7+ {[%clk 0:00:16]}  Kxg6 {[%clk 0:00:03]} 35. Qe6+ {[%clk 0:00:05]}  Qf6 {[%clk 0:00:03]} 36. Qg8+ {[%clk 0:00:05]}  Kh6 {[%clk 0:00:04]} 37. Nd5 {[%clk 0:00:04]}  Bxd5 {[%clk 0:00:03]} 38. cxd5 {[%clk 0:00:05]}  e4 {[%clk 0:00:04]} 39. Qe6 {[%clk 0:00:03]}  Qxe6 {[%clk 0:00:03]} 40. dxe6 {[%clk 0:00:03]}  Kg6 {[%clk 0:00:04]} 0-1


[Site "https://www.chess.com"]

[Event "Titled Tuesday Blitz May 25 2021"]
[White "elohunter1999"]
[Black "Savitski, Andrei"]
[BlackFideId "13506161"]
[WhiteElo "2553"]
[BlackElo "2724"]
[Result "0-1"]
[Round "09"]
[TimeControl "180+1"]
[Date "2021.05.25"]
[WhiteClock "0:01:04"]
[BlackClock "0:02:18"]

1. d4 {[%clk 0:03:00]}  d5 {[%clk 0:02:56]} 2. c4 {[%clk 0:03:00]}  dxc4 {[%clk 0:02:56]} 3. e4 {[%clk 0:02:57]}  Nf6 {[%clk 0:02:56]} 4. e5 {[%clk 0:02:57]}  Nd5 {[%clk 0:02:57]} 5. Bxc4 {[%clk 0:02:57]}  Nb6 {[%clk 0:02:57]} 6. Bd3 {[%clk 0:02:55]}  Nc6 {[%clk 0:02:56]} 7. Ne2 {[%clk 0:02:52]}  Bg4 {[%clk 0:02:55]} 8. Be3 {[%clk 0:02:15]}  e6 {[%clk 0:02:54]} 9. Nbc3 {[%clk 0:02:14]}  Qd7 {[%clk 0:02:53]} 10. Qd2 {[%clk 0:02:07]}  O-O-O {[%clk 0:02:52]} 11. Be4 {[%clk 0:02:05]}  Bh5 {[%clk 0:02:48]} 12. Nf4 {[%clk 0:01:59]}  Bg6 {[%clk 0:02:47]} 13. Nxg6 {[%clk 0:01:59]}  hxg6 {[%clk 0:02:48]} 14. Rd1 {[%clk 0:01:56]}  Nb4 {[%clk 0:02:48]} 15. O-O {[%clk 0:01:50]}  Kb8 {[%clk 0:02:47]} 16. Rc1 {[%clk 0:01:45]}  N4d5 {[%clk 0:02:47]} 17. Rfd1 {[%clk 0:01:41]}  Be7 {[%clk 0:02:42]} 18. Nxd5 {[%clk 0:01:38]}  Nxd5 {[%clk 0:02:42]} 19. Qa5 {[%clk 0:01:38]}  Bb4 {[%clk 0:02:35]} 20. Rxc7 {[%clk 0:01:11]}  Bxa5 {[%clk 0:02:28]} 21. Rxd7 {[%clk 0:01:11]}  Rxd7 {[%clk 0:02:29]} 22. a3 {[%clk 0:01:11]}  Rc8 {[%clk 0:02:28]} 23. g3 {[%clk 0:01:08]}  Bb6 {[%clk 0:02:28]} 24. Kg2 {[%clk 0:01:08]}  Ne7 {[%clk 0:02:22]} 25. h4 {[%clk 0:01:07]}  Nc6 {[%clk 0:02:21]} 26. d5 {[%clk 0:01:06]}  Bxe3 {[%clk 0:02:18]} 27. fxe3 {[%clk 0:01:04]}  Nxe5 {[%clk 0:02:18]} 0-1


[Site "https://www.chess.com"]

[Event "Titled Tuesday Blitz May 25 2021"]
[White "korbul"]
[Black "Estrada Nieto, Julian"]
[BlackFideId "5101018"]
[WhiteElo "2552"]
[BlackElo "2270"]
[Result "0-1"]
[Round "09"]
[TimeControl "180+1"]
[Date "2021.05.25"]
[WhiteClock "0:02:26"]
[BlackClock "0:01:51"]

1. d4 {[%clk 0:03:00]}  Nf6 {[%clk 0:02:59]} 2. c4 {[%clk 0:02:59]}  e6 {[%clk 0:02:59]} 3. Nf3 {[%clk 0:02:59]}  c5 {[%clk 0:02:58]} 4. d5 {[%clk 0:02:58]}  d6 {[%clk 0:02:58]} 5. Nc3 {[%clk 0:02:57]}  exd5 {[%clk 0:02:58]} 6. cxd5 {[%clk 0:02:57]}  g6 {[%clk 0:02:58]} 7. Bf4 {[%clk 0:02:57]}  a6 {[%clk 0:02:47]} 8. e4 {[%clk 0:02:56]}  Bg7 {[%clk 0:02:46]} 9. Bd3 {[%clk 0:02:54]}  Bg4 {[%clk 0:02:42]} 10. O-O {[%clk 0:02:51]}  O-O {[%clk 0:02:41]} 11. h3 {[%clk 0:02:50]}  Bxf3 {[%clk 0:02:40]} 12. Qxf3 {[%clk 0:02:51]}  Nh5 {[%clk 0:02:28]} 13. Bh2 {[%clk 0:02:44]}  b5 {[%clk 0:02:27]} 14. a4 {[%clk 0:02:38]}  b4 {[%clk 0:02:25]} 15. Nd1 {[%clk 0:02:38]}  Nd7 {[%clk 0:02:24]} 16. Bxd6 {[%clk 0:02:36]}  Ne5 {[%clk 0:02:20]} 17. Bxe5 {[%clk 0:02:36]}  Bxe5 {[%clk 0:02:20]} 18. Rb1 {[%clk 0:02:33]}  a5 {[%clk 0:02:14]} 19. Ne3 {[%clk 0:02:33]}  Nf4 {[%clk 0:02:04]} 20. Nc4 {[%clk 0:02:32]}  Nxd3 {[%clk 0:01:56]} 21. Qxd3 {[%clk 0:02:31]}  Bd4 {[%clk 0:01:57]} 22. e5 {[%clk 0:02:27]}  Qxd5 {[%clk 0:01:53]} 23. Nb6 {[%clk 0:02:26]}  Bxf2+ {[%clk 0:01:51]} 24. Rxf2 {[%clk 0:02:26]}  Qxd3 {[%clk 0:01:52]} 25. Nxa8 {[%clk 0:02:26]}  Qxb1+ {[%clk 0:01:51]} 0-1


[Site "https://www.chess.com"]

[Event "Titled Tuesday Blitz May 25 2021"]
[White "ARTHURMOTIVATOR"]
[Black "Vovk, Orest"]
[BlackFideId "14113490"]
[WhiteElo "2336"]
[BlackElo "2203"]
[Result "1-0"]
[Round "10"]
[TimeControl "180+1"]
[Date "2021.05.25"]
[WhiteClock "0:00:06"]
[BlackClock "0:00:08"]

1. e4 {[%clk 0:03:00]}  Nc6 {[%clk 0:02:54]} 2. Nc3 {[%clk 0:02:55]}  Nf6 {[%clk 0:02:53]} 3. g3 {[%clk 0:02:52]}  d5 {[%clk 0:02:53]} 4. exd5 {[%clk 0:02:51]}  Nxd5 {[%clk 0:02:54]} 5. Bg2 {[%clk 0:02:51]}  Be6 {[%clk 0:02:51]} 6. Nf3 {[%clk 0:02:48]}  h6 {[%clk 0:02:38]} 7. O-O {[%clk 0:02:47]}  g6 {[%clk 0:02:37]} 8. Re1 {[%clk 0:02:45]}  Bg7 {[%clk 0:02:36]} 9. Nh4 {[%clk 0:02:36]}  Qd7 {[%clk 0:02:30]} 10. Ne4 {[%clk 0:02:18]}  b6 {[%clk 0:02:15]} 11. c3 {[%clk 0:02:16]}  O-O {[%clk 0:02:10]} 12. d4 {[%clk 0:02:14]}  Rad8 {[%clk 0:02:06]} 13. Qe2 {[%clk 0:02:07]}  Kh7 {[%clk 0:02:01]} 14. Bd2 {[%clk 0:01:50]}  Nf6 {[%clk 0:01:43]} 15. Nxf6+ {[%clk 0:01:30]}  Bxf6 {[%clk 0:01:41]} 16. Nxg6 {[%clk 0:01:23]}  Kxg6 {[%clk 0:01:32]} 17. Qe4+ {[%clk 0:01:16]}  Bf5 {[%clk 0:01:26]} 18. Qxc6 {[%clk 0:01:16]}  Qxc6 {[%clk 0:01:23]} 19. Bxc6 {[%clk 0:01:15]}  Rd6 {[%clk 0:01:22]} 20. Be4 {[%clk 0:01:14]}  c5 {[%clk 0:01:16]} 21. Bxf5+ {[%clk 0:01:12]}  Kxf5 {[%clk 0:01:13]} 22. Bxh6 {[%clk 0:01:12]}  Rfd8 {[%clk 0:01:05]} 23. Bf4 {[%clk 0:01:10]}  Rd5 {[%clk 0:01:05]} 24. dxc5 {[%clk 0:01:05]}  bxc5 {[%clk 0:01:06]} 25. Be3 {[%clk 0:01:05]}  a5 {[%clk 0:01:00]} 26. Re2 {[%clk 0:00:57]}  c4 {[%clk 0:00:59]} 27. Kg2 {[%clk 0:00:54]}  a4 {[%clk 0:00:59]} 28. a3 {[%clk 0:00:52]}  Rb8 {[%clk 0:00:54]} 29. Rae1 {[%clk 0:00:42]}  Rdb5 {[%clk 0:00:53]} 30. Bd4 {[%clk 0:00:38]}  Rxb2 {[%clk 0:00:50]} 31. Re4 {[%clk 0:00:36]}  R8b3 {[%clk 0:00:43]} 32. Rf4+ {[%clk 0:00:28]}  Kg6 {[%clk 0:00:43]} 33. Bxf6 {[%clk 0:00:26]}  exf6 {[%clk 0:00:43]} 34. Rxc4 {[%clk 0:00:26]}  Rxa3 {[%clk 0:00:43]} 35. Ree4 {[%clk 0:00:25]}  f5 {[%clk 0:00:41]} 36. Red4 {[%clk 0:00:23]}  Raa2 {[%clk 0:00:40]} 37. Rf4 {[%clk 0:00:21]}  a3 {[%clk 0:00:39]} 38. Rc6+ {[%clk 0:00:21]}  f6 {[%clk 0:00:38]} 39. h4 {[%clk 0:00:19]}  Ra1 {[%clk 0:00:31]} 40. Ra6 {[%clk 0:00:19]}  Rb3 {[%clk 0:00:18]} 41. c4 {[%clk 0:00:17]}  a2 {[%clk 0:00:18]} 42. c5 {[%clk 0:00:17]}  Rb2 {[%clk 0:00:18]} 43. Rfa4 {[%clk 0:00:17]}  Rc2 {[%clk 0:00:18]} 44. c6 {[%clk 0:00:16]}  Rac1 {[%clk 0:00:17]} 45. Rxa2 {[%clk 0:00:15]}  Rxc6 {[%clk 0:00:17]} 46. Rxc6 {[%clk 0:00:15]}  Rxc6 {[%clk 0:00:18]} 47. Re2 {[%clk 0:00:14]}  f4 {[%clk 0:00:17]} 48. g4 {[%clk 0:00:13]}  Rc3 {[%clk 0:00:16]} 49. Ra2 {[%clk 0:00:12]}  Rc4 {[%clk 0:00:14]} 50. Kf3 {[%clk 0:00:11]}  Rb4 {[%clk 0:00:14]} 51. Ra5 {[%clk 0:00:11]}  Rc4 {[%clk 0:00:12]} 52. Rf5 {[%clk 0:00:11]}  Rc3+ {[%clk 0:00:12]} 53. Kxf4 {[%clk 0:00:10]}  Rh3 {[%clk 0:00:13]} 54. h5+ {[%clk 0:00:09]}  Kg7 {[%clk 0:00:13]} 55. f3 {[%clk 0:00:10]}  Rh1 {[%clk 0:00:13]} 56. Ra5 {[%clk 0:00:09]}  Rf1 {[%clk 0:00:13]} 57. Ra7+ {[%clk 0:00:09]}  Kg8 {[%clk 0:00:14]} 58. Rb7 {[%clk 0:00:07]}  Rf2 {[%clk 0:00:13]} 59. h6 {[%clk 0:00:07]}  Rf1 {[%clk 0:00:13]} 60. Kf5 {[%clk 0:00:07]}  Rxf3+ {[%clk 0:00:07]} 61. Kg6 {[%clk 0:00:07]}  Kf8 {[%clk 0:00:08]} 62. h7 {[%clk 0:00:06]}  Rh3 {[%clk 0:00:08]} 63. Rb8+ {[%clk 0:00:06]} 1-0


[Site "https://www.chess.com"]

[Event "Titled Tuesday Blitz May 25 2021"]
[White "Ambartsumova, Karina"]
[Black "Vakhlamov, Igor L."]
[WhiteFideId "4166299"]
[BlackFideId "24126748"]
[WhiteElo "2262"]
[BlackElo "2405"]
[Result "0-1"]
[Round "10"]
[TimeControl "180+1"]
[Date "2021.05.25"]
[WhiteClock "0:00:01"]
[BlackClock "0:00:09"]

1. c4 {[%clk 0:03:00]}  Nf6 {[%clk 0:02:58]} 2. Nf3 {[%clk 0:03:00]}  c5 {[%clk 0:02:58]} 3. Nc3 {[%clk 0:02:59]}  Nc6 {[%clk 0:02:57]} 4. d4 {[%clk 0:02:59]}  cxd4 {[%clk 0:02:58]} 5. Nxd4 {[%clk 0:03:00]}  g6 {[%clk 0:02:59]} 6. Nc2 {[%clk 0:02:59]}  Bg7 {[%clk 0:02:58]} 7. e4 {[%clk 0:02:59]}  O-O {[%clk 0:02:58]} 8. Be2 {[%clk 0:02:59]}  d6 {[%clk 0:02:59]} 9. O-O {[%clk 0:03:00]}  Nd7 {[%clk 0:02:59]} 10. Bd2 {[%clk 0:02:59]}  Nc5 {[%clk 0:02:59]} 11. b4 {[%clk 0:02:59]}  Bxc3 {[%clk 0:02:58]} 12. Bxc3 {[%clk 0:03:00]}  Nxe4 {[%clk 0:02:58]} 13. Bb2 {[%clk 0:03:00]}  e5 {[%clk 0:02:52]} 14. b5 {[%clk 0:02:51]}  Ne7 {[%clk 0:02:48]} 15. Kh1 {[%clk 0:02:26]}  Qb6 {[%clk 0:02:42]} 16. Qe1 {[%clk 0:02:22]}  Bf5 {[%clk 0:02:29]} 17. Ne3 {[%clk 0:02:15]}  Be6 {[%clk 0:02:28]} 18. Bd3 {[%clk 0:01:57]}  f5 {[%clk 0:02:23]} 19. f4 {[%clk 0:01:48]}  Rad8 {[%clk 0:01:18]} 20. Rd1 {[%clk 0:01:44]}  Qc5 {[%clk 0:01:14]} 21. Qe2 {[%clk 0:00:55]}  a6 {[%clk 0:01:00]} 22. a4 {[%clk 0:00:54]}  axb5 {[%clk 0:00:56]} 23. axb5 {[%clk 0:00:52]}  Ra8 {[%clk 0:00:53]} 24. fxe5 {[%clk 0:00:48]}  dxe5 {[%clk 0:00:52]} 25. Bxe4 {[%clk 0:00:49]}  fxe4 {[%clk 0:00:53]} 26. Ng4 {[%clk 0:00:36]}  Bxg4 {[%clk 0:00:52]} 27. Qxg4 {[%clk 0:00:37]}  Qxc4 {[%clk 0:00:51]} 28. Rfe1 {[%clk 0:00:29]}  Rf4 {[%clk 0:00:42]} 29. Qd7 {[%clk 0:00:27]}  Raf8 {[%clk 0:00:42]} 30. h3 {[%clk 0:00:23]}  Rf1+ {[%clk 0:00:39]} 31. Kh2 {[%clk 0:00:23]}  Rxe1 {[%clk 0:00:38]} 32. Rxe1 {[%clk 0:00:24]}  Nf5 {[%clk 0:00:25]} 33. Bxe5 {[%clk 0:00:24]}  Qf7 {[%clk 0:00:25]} 34. Qd2 {[%clk 0:00:13]}  e3 {[%clk 0:00:23]} 35. Qd3 {[%clk 0:00:14]}  Re8 {[%clk 0:00:23]} 36. Bb2 {[%clk 0:00:13]}  Qc7+ {[%clk 0:00:23]} 37. Kg1 {[%clk 0:00:12]}  Qc5 {[%clk 0:00:20]} 38. Re2 {[%clk 0:00:12]}  Ng3 {[%clk 0:00:18]} 39. Rc2 {[%clk 0:00:09]}  Qe7 {[%clk 0:00:13]} 40. Qd5+ {[%clk 0:00:08]}  Qf7 {[%clk 0:00:12]} 41. Qxf7+ {[%clk 0:00:04]}  Kxf7 {[%clk 0:00:13]} 42. Rc7+ {[%clk 0:00:04]}  Re7 {[%clk 0:00:09]} 43. Rxe7+ {[%clk 0:00:02]}  Kxe7 {[%clk 0:00:10]} 44. Bc3 {[%clk 0:00:01]}  Ne2+ {[%clk 0:00:09]} 0-1


[Site "https://www.chess.com"]